bitfinex/quotes_BTCUSD_20251012
["timestamp","ask_amount","ask_price","bid_price","bid_amount"]
[1760281398383,0.17732068,112790.0,112780.0,0.03600792]
[1760281399068,0.17788311,112800.0,112780.0,0.03600792]
[1760281399286,0.17732068,112790.0,112780.0,0.13121792]
[1760281399496,0.17732068,112790.0,112780.0,0.03600792]
[1760281400577,0.17732068,112790.0,112780.0,0.53121792]
[1760281400942,0.17732068,112790.0,112780.0,0.43600792]
[1760281401346,0.17732068,112790.0,112780.0,0.53121792]
[1760281401547,0.17732068,112790.0,112780.0,0.43700792]
[1760281401940,0.17732068,112790.0,112780.0,0.43600792]
[1760281402877,0.0005747,112800.0,112780.0,0.59769792]
[1760281403075,0.17787966,112800.0,112790.0,0.03506]
[1760281403291,0.17787966,112800.0,112790.0,0.10154]
[1760281403486,0.17787966,112800.0,112790.0,0.19675]
[1760281403863,0.38912,112820.0,112790.0,0.10154]
[1760281404062,0.01003568,112830.0,112820.0,0.54742543]
[1760281404374,0.21107181,112860.0,112820.0,0.24995142]
[1760281404573,0.21107181,112860.0,112830.0,0.03506]
[1760281404574,0.17722861,112850.0,112830.0,0.03506]
[1760281404894,0.07426979,112860.0,112830.0,0.13027]
[1760281405248,0.02514979,112860.0,112850.0,0.2092164]
[1760281405424,0.02514979,112860.0,112850.0,0.3470264]
[1760281405655,0.02514979,112860.0,112850.0,0.43655592]
[1760281405828,0.02514979,112860.0,112850.0,0.46670782]
[1760281406269,0.00314372,112860.0,112850.0,0.80670782]
[1760281406858,0.00314372,112860.0,112850.0,1.20670782]
[1760281407298,0.00028,112890.0,112880.0,0.0301519]
[1760281407517,0.00028,112890.0,112880.0,0.1771793]
[1760281407724,0.00028,112890.0,112880.0,0.2723893]
[1760281407946,0.00028,112890.0,112880.0,1.13207072]
[1760281408193,0.0002,112920.0,112900.0,0.17714791]
[1760281408430,0.00069933,112920.0,112910.0,0.03805505]
[1760281408659,0.00069933,112920.0,112910.0,0.03908493]
[1760281408887,0.00069933,112920.0,112910.0,0.1632119]
[1760281409103,0.18593999,112940.0,112910.0,0.03785]
[1760281409306,0.17710192,112930.0,112910.0,0.03785]
[1760281409510,0.0001497,112940.0,112920.0,0.09883]
[1760281409731,0.17723742,112940.0,112910.0,0.03785]
[1760281409950,0.00900395,112940.0,112910.0,0.30540126]
[1760281410147,0.0068888,112920.0,112910.0,0.21498126]
[1760281410565,0.0068888,112920.0,112910.0,0.64513316]
[1760281410773,0.0068888,112920.0,112910.0,0.64795142]
[1760281411179,0.0068888,112920.0,112910.0,0.82508364]
[1760281411537,0.0068888,112920.0,112910.0,0.64795142]
[1760281411954,0.0068888,112920.0,112910.0,0.98795142]
[1760281412125,0.0068888,112920.0,112910.0,1.16608364]
[1760281412319,0.0068888,112920.0,112910.0,0.98895142]
[1760281412564,0.0068888,112920.0,112910.0,0.86927]
[1760281412940,0.18400534,112920.0,112910.0,0.77885]
[1760281413126,0.0068888,112920.0,112910.0,0.77885]
[1760281413327,0.0068888,112920.0,112910.0,0.86927]
[1760281413872,0.0068888,112920.0,112910.0,1.16608364]
[1760281413873,0.0017222,112920.0,112910.0,1.16608364]
[1760281415542,0.0017222,112920.0,112910.0,1.18844484]
[1760281415735,0.0017222,112920.0,112910.0,1.66608364]
[1760281416080,0.0017222,112920.0,112910.0,1.39853142]
[1760281416290,0.17883874,112920.0,112910.0,1.36927]
[1760281416492,0.0017222,112920.0,112910.0,1.36927]
[1760281416673,0.17883874,112920.0,112910.0,1.36927]
[1760281416877,0.17883874,112920.0,112910.0,0.901]
[1760281417178,0.30028874,112920.0,112910.0,0.501]
[1760281417379,0.17711654,112920.0,112910.0,0.501]
[1760281417958,0.17711654,112920.0,112910.0,0.5]
[1760281418716,0.51711654,112920.0,112910.0,0.5]
[1760281419525,0.34,112920.0,112910.0,0.5]
[1760281419727,0.17711654,112920.0,112910.0,0.5]
[1760281419928,0.17811654,112920.0,112910.0,0.5]
[1760281420175,5.10834743,112920.0,112910.0,0.02877771]
[1760281420347,0.51811654,112920.0,112910.0,0.02877771]
[1760281420551,0.51711654,112920.0,112910.0,0.02877771]
[1760281420751,0.51711654,112920.0,112910.0,1e-08]
[1760281420950,4.60734743,112920.0,112910.0,1e-08]
[1760281421338,4.70734742,112920.0,112910.0,1e-08]
[1760281421914,4.80734741,112920.0,112870.0,0.07162362]
[1760281422036,0.61717929,112880.0,112870.0,1e-08]
[1760281422239,0.1772107,112860.0,112850.0,0.11422362]
[1760281422458,0.17724211,112840.0,112830.0,0.07162362]
[1760281422673,0.22587987,112850.0,112830.0,0.07162362]
[1760281422914,0.17723987,112850.0,112830.0,0.07162362]
[1760281423153,0.17724223,112840.0,112830.0,0.09091933]
[1760281423555,0.17724211,112840.0,112830.0,0.09091933]
[1760281423767,0.18610119,112850.0,112830.0,0.00049933]
[1760281423948,0.18610119,112850.0,112830.0,0.09091933]
[1760281424155,0.17722788,112850.0,112830.0,0.00049933]
[1760281424361,0.17724211,112840.0,112830.0,0.00049933]
[1760281424770,0.17724211,112840.0,112830.0,0.00149933]
[1760281427663,0.22586788,112850.0,112830.0,0.00149933]
[1760281427841,0.18607123,112860.0,112830.0,0.32686706]
[1760281428054,0.1772264,112850.0,112840.0,0.00496625]
[1760281428812,0.18607123,112860.0,112840.0,0.00496625]
[1760281429020,0.17721105,112860.0,112840.0,0.10435625]
[1760281429210,0.17721105,112860.0,112840.0,0.09939]
[1760281429745,0.1772272,112850.0,112830.0,0.44921933]
[1760281429948,0.18607158,112860.0,112830.0,0.81539585]
[1760281430174,0.18607158,112860.0,112830.0,0.71600585]
[1760281430373,0.2186882,112870.0,112850.0,0.04872]
[1760281430374,0.17719592,112870.0,112850.0,0.04872]
[1760281430577,0.17719592,112870.0,112860.0,0.04872]
[1760281430861,0.177195,112870.0,112860.0,0.04872]
[1760281431255,0.21034179,112890.0,112860.0,0.14811]
[1760281431464,0.20983744,112910.0,112880.0,0.04872]
[1760281431673,0.17716361,112890.0,112880.0,0.14811]
[1760281431820,0.17715282,112900.0,112880.0,0.54811]
[1760281432034,0.17716361,112890.0,112880.0,0.44872]
[1760281432239,0.17715282,112900.0,112880.0,0.54811]
[1760281432434,0.17716361,112890.0,112880.0,0.54811]
[1760281432777,0.17716361,112890.0,112880.0,0.54860933]
[1760281433203,0.17715282,112900.0,112880.0,0.54860933]
[1760281433204,0.21036653,112920.0,112880.0,0.63813885]
[1760281433394,0.18598962,112910.0,112890.0,0.09939]
[1760281433589,0.17712164,112920.0,112900.0,0.09939]
[1760281433787,0.17713222,112910.0,112900.0,0.09939]
[1760281433999,0.17712164,112920.0,112900.0,0.09939]
[1760281434206,0.00057372,112930.0,112910.0,0.09939]
[1760281434482,0.17768045,112930.0,112910.0,0.09939]
[1760281434662,0.00057372,112930.0,112920.0,0.09939]
[1760281435510,0.00057372,112930.0,112920.0,0.49939]
[1760281435851,0.17782424,112930.0,112920.0,0.49939]
[1760281436051,0.00072339,112930.0,112920.0,0.76603606]
[1760281436276,0.17279356,112950.0,112920.0,0.76603606]
[1760281436522,0.17708517,112940.0,112930.0,0.1483013]
[1760281436726,0.09380887,112950.0,112920.0,0.4]
[1760281436865,0.17708517,112940.0,112920.0,0.4]
[1760281437075,0.17710085,112930.0,112920.0,0.49939]
[1760281437473,0.17710085,112930.0,112920.0,0.4]
[1760281437905,0.17713222,112910.0,112900.0,0.09939]
[1760281438104,0.17711654,112920.0,112900.0,0.09988933]
[1760281438276,0.18595589,112930.0,112910.0,0.09939]
[1760281438481,0.18595589,112930.0,112920.0,0.04872]
[1760281438675,0.18595589,112930.0,112910.0,0.14811]
[1760281438913,0.17211654,112920.0,112910.0,0.14811]
[1760281439547,0.17211654,112920.0,112910.0,0.04872]
[1760281439874,0.17713222,112910.0,112900.0,0.44921933]
[1760281439996,0.17713222,112910.0,112900.0,0.45021933]
[1760281440234,0.17713222,112910.0,112900.0,0.00149933]
[1760281440443,0.25095222,112910.0,112900.0,0.00049933]
[1760281440963,0.17713222,112910.0,112900.0,0.04568933]
[1760281441168,0.21027589,112930.0,112900.0,0.31818481]
[1760281441371,0.18595589,112930.0,112910.0,0.14054]
[1760281441601,0.18593942,112940.0,112920.0,0.04519]
[1760281441800,0.17710085,112930.0,112920.0,0.14054]
[1760281442115,0.17710085,112930.0,112920.0,0.14148637]
[1760281442521,0.17710085,112930.0,112920.0,0.00094637]
[1760281442949,0.20972085,112930.0,112920.0,0.00094637]
[1760281443183,0.25922085,112930.0,112920.0,0.00094637]
[1760281443337,0.59922085,112930.0,112920.0,0.00094637]
[1760281443537,0.64972084,112930.0,112920.0,1e-08]
[1760281443763,0.20972085,112930.0,112920.0,1e-08]
[1760281444023,0.17710085,112930.0,112920.0,1e-08]
[1760281444483,0.17710085,112930.0,112920.0,0.04519001]
[1760281445324,0.18651305,112940.0,112920.0,0.04519001]
[1760281445535,0.17766008,112940.0,112930.0,0.04519]
[1760281446066,0.00057363,112940.0,112930.0,0.14054]
[1760281446501,0.1776588,112940.0,112930.0,0.14054]
[1760281446718,0.00057363,112940.0,112930.0,0.31764085]
[1760281447146,0.00057363,112940.0,112930.0,0.40717037]
[1760281447387,0.21094732,112970.0,112940.0,0.17708368]
[1760281447388,0.025,112970.0,112940.0,0.17708368]
[1760281447593,0.025,112970.0,112960.0,0.04519]
[1760281447833,0.025,112970.0,112960.0,0.04577457]
[1760281447983,0.025,112970.0,112960.0,0.44577457]
[1760281448212,0.17705382,112960.0,112950.0,0.08775]
[1760281448415,0.17705382,112960.0,112950.0,0.04256]
[1760281448646,0.17705382,112960.0,112950.0,0.44256]
[1760281450003,0.17705382,112960.0,112950.0,0.04256]
[1760281450474,0.20259382,112960.0,112950.0,0.04256]
[1760281450662,0.59209382,112960.0,112950.0,0.04256]
[1760281450859,0.59209382,112960.0,112950.0,0.04356]
[1760281451065,0.54259382,112960.0,112950.0,0.04356]
[1760281453052,0.54468703,112960.0,112950.0,0.04256]
[1760281453375,0.59418703,112960.0,112950.0,0.04256]
[1760281453839,0.54468703,112960.0,112950.0,0.04256]
[1760281453994,0.17914703,112960.0,112950.0,0.08775]
[1760281454350,0.20468703,112960.0,112950.0,0.04256]
[1760281454710,0.59418703,112960.0,112950.0,0.04256]
[1760281454911,0.54468703,112960.0,112950.0,0.04256]
[1760281455111,0.00209321,112960.0,112950.0,0.1831]
[1760281455547,0.00209321,112960.0,112950.0,0.08775]
[1760281455750,0.17914703,112960.0,112950.0,0.08775]
[1760281455973,0.00209321,112960.0,112950.0,0.1841]
[1760281456198,0.00209321,112960.0,112950.0,0.08875]
[1760281456412,0.17914703,112960.0,112950.0,0.08875]
[1760281456647,0.21014703,112960.0,112950.0,0.04356]
[1760281457306,0.37309321,112960.0,112950.0,0.04356]
[1760281457515,0.60013703,112960.0,112950.0,0.04356]
[1760281458485,0.59964703,112960.0,112950.0,0.04356]
[1760281458660,0.60013703,112960.0,112950.0,0.04356]
[1760281458844,0.60013703,112960.0,112950.0,0.04256]
[1760281459045,0.17708517,112940.0,112920.0,0.00057369]
[1760281459265,0.17708517,112940.0,112920.0,1e-08]
[1760281459266,0.54174085,112930.0,112920.0,1e-08]
[1760281459470,0.59182085,112930.0,112920.0,1e-08]
[1760281459879,0.17710085,112930.0,112920.0,0.04519001]
[1760281460241,0.20200085,112930.0,112920.0,1e-08]
[1760281460399,0.59183085,112930.0,112920.0,1e-08]
[1760281460605,0.54200085,112930.0,112920.0,1e-08]
[1760281461224,0.59183085,112930.0,112920.0,1e-08]
[1760281463547,4.65190984,112930.0,112920.0,1e-08]
[1760281463897,0.61683084,112930.0,112920.0,1e-08]
[1760281464538,0.59183085,112930.0,112920.0,1e-08]
[1760281464745,0.20200085,112930.0,112920.0,1e-08]
[1760281464949,0.17710085,112930.0,112920.0,1e-08]
[1760281465669,0.17710085,112930.0,112920.0,0.14054001]
[1760281465878,0.17810085,112930.0,112920.0,0.14054001]
[1760281466318,0.17803145,112940.0,112920.0,0.14054001]
[1760281466319,0.17803447,112940.0,112920.0,0.14054001]
[1760281466532,0.17803447,112940.0,112930.0,0.14054]
[1760281466688,0.00094628,112940.0,112930.0,0.14054]
[1760281466889,0.00094628,112940.0,112930.0,0.80717037]
[1760281467135,0.00094628,112940.0,112930.0,0.83732227]
[1760281467916,0.025,112970.0,112960.0,0.17705382]
[1760281468136,0.02514959,112970.0,112960.0,0.13471952]
[1760281468334,0.02514959,112970.0,112960.0,0.23006952]
[1760281468470,0.02514959,112970.0,112960.0,0.40712334]
[1760281468677,0.1770234,112980.0,112960.0,0.23006952]
[1760281468939,0.1770234,112980.0,112970.0,0.13791]
[1760281469113,0.1770234,112980.0,112970.0,0.04256]
[1760281469559,0.2272534,112980.0,112970.0,0.04256]
[1760281469754,0.5672534,112980.0,112970.0,0.04256]
[1760281470317,0.17706949,112950.0,112940.0,0.07162362]
[1760281470557,0.17706949,112950.0,112940.0,0.07177321]
[1760281470763,0.17706949,112950.0,112940.0,0.09775959]
[1760281470995,0.17705668,112960.0,112940.0,0.09775959]
[1760281471194,0.03919034,112990.0,112950.0,0.14333]
[1760281471398,0.1770389,112970.0,112960.0,0.09761]
[1760281473513,0.17933283,112970.0,112960.0,0.14333]
[1760281473742,0.17933283,112970.0,112960.0,0.14507701]
[1760281474516,0.00229393,112970.0,112960.0,0.54507701]
[1760281474721,0.00229393,112970.0,112960.0,0.54333]
[1760281475484,0.00229393,112970.0,112960.0,0.80991334]
[1760281475883,0.00229393,112970.0,112960.0,0.63285952]
[1760281476097,0.00229393,112970.0,112960.0,0.80991334]
[1760281476302,0.00229393,112970.0,112960.0,0.66301142]
[1760281476744,0.00229393,112970.0,112960.0,0.66401142]
[1760281476972,0.17933208,112970.0,112960.0,0.63385952]
[1760281477177,0.17933208,112970.0,112960.0,0.54433]
[1760281477388,0.17933208,112970.0,112960.0,0.001]
[1760281477589,0.18987208,112970.0,112960.0,0.001]
[1760281478039,0.23937208,112970.0,112960.0,0.001]
[1760281478244,0.23937208,112970.0,112960.0,1e-08]
[1760281478445,0.18987208,112970.0,112960.0,1e-08]
[1760281478644,0.17933208,112970.0,112960.0,1e-08]
[1760281478847,0.17705382,112960.0,112950.0,0.04572]
[1760281479284,0.18606096,112990.0,112950.0,0.41878183]
[1760281479463,0.18606475,112990.0,112970.0,0.04572]
[1760281479674,0.18606475,112990.0,112980.0,0.14333]
[1760281479872,0.18606475,112990.0,112980.0,0.04572]
[1760281480020,0.17702248,112980.0,112970.0,0.04572]
[1760281480230,0.17702248,112980.0,112970.0,0.14333]
[1760281481486,0.17721664,112990.0,112970.0,0.23285952]
[1760281481664,0.17702248,112980.0,112970.0,0.13524952]
[1760281481843,0.17721664,112990.0,112980.0,0.04572]
[1760281482247,0.17721664,112990.0,112980.0,0.14333]
[1760281482525,0.0002,112990.0,112980.0,0.23285952]
[1760281482725,0.17720681,112990.0,112980.0,0.63285952]
[1760281482853,0.0002,112990.0,112980.0,0.8400339]
[1760281483263,5.0,113000.0,112990.0,0.0301519]
[1760281483470,4.94022751,113000.0,112990.0,0.43657823]
[1760281483669,4.93482882,113000.0,112990.0,0.43657823]
[1760281484503,4.93482882,113000.0,112990.0,0.22941952]
[1760281484706,4.93884213,113000.0,112990.0,0.22941952]
[1760281485126,4.93884213,113000.0,112990.0,0.29183952]
[1760281485127,5.11583328,113000.0,112990.0,0.29183952]
[1760281485339,5.11583328,113000.0,112990.0,0.20231]
[1760281485539,5.11583328,113000.0,112990.0,0.0514]
[1760281485745,5.11583328,113000.0,112990.0,0.06242]
[1760281485948,4.93884213,113000.0,112990.0,0.29183952]
[1760281486153,4.93884213,113000.0,112990.0,0.60031]
[1760281486354,5.11583328,113000.0,112990.0,0.68983952]
[1760281486560,5.11583328,113000.0,112990.0,0.51082]
[1760281486986,5.11583328,113000.0,112990.0,0.001]
[1760281487611,5.11583328,113000.0,112990.0,0.0504]
[1760281488020,5.11583328,113000.0,112990.0,0.001]
[1760281488218,5.11583328,113000.0,112980.0,0.04572]
[1760281488219,0.17700681,112990.0,112980.0,0.04572]
[1760281488425,4.93482882,113000.0,112990.0,0.0494]
[1760281488632,5.11181997,113000.0,112990.0,0.20231]
[1760281488836,4.93482882,113000.0,112990.0,0.20231]
[1760281489173,5.11583328,113000.0,112990.0,0.20031]
[1760281489595,4.93884213,113000.0,112990.0,0.20031]
[1760281489765,5.11583328,113000.0,112990.0,0.20031]
[1760281490140,5.11583328,113000.0,112990.0,0.10982]
[1760281490350,5.11583328,113000.0,112980.0,0.04572]
[1760281490535,0.17703815,112970.0,112960.0,0.11734362]
[1760281490758,0.17703815,112970.0,112960.0,0.26825362]
[1760281490942,0.23082715,112990.0,112960.0,0.5348354]
[1760281490943,0.18585715,112990.0,112960.0,0.5348354]
[1760281491186,5.12066952,113000.0,112990.0,0.001]
[1760281491388,4.93482882,113000.0,112990.0,0.20131]
[1760281491606,5.11181997,113000.0,112990.0,0.20131]
[1760281491788,5.11181997,113000.0,112990.0,0.20031]
[1760281492545,0.17700681,112990.0,112980.0,0.0494]
[1760281493236,0.17700681,112990.0,112980.0,0.20031]
[1760281493412,5.11181997,113000.0,112980.0,0.20031]
[1760281493589,0.17700681,112990.0,112980.0,0.10982]
[1760281493789,5.11181997,113000.0,112980.0,0.10982]
[1760281493960,5.11181997,113000.0,112990.0,0.05242855]
[1760281494165,4.93482882,113000.0,112990.0,0.28983952]
[1760281494405,5.11181997,113000.0,112990.0,0.28983952]
[1760281494610,4.93482882,113000.0,112990.0,0.68983952]
[1760281494819,4.93482882,113000.0,112990.0,0.86684633]
[1760281495009,4.93482882,113000.0,112990.0,0.89699823]
[1760281495514,4.93482882,113000.0,112990.0,0.89799823]
[1760281495947,4.93482882,113000.0,112990.0,0.71999142]
[1760281496126,4.93482882,113000.0,112990.0,0.72199142]
[1760281496281,4.93884213,113000.0,112990.0,0.72199142]
[1760281496488,5.11583328,113000.0,112990.0,0.69183952]
[1760281496995,4.93884213,113000.0,112990.0,0.89899823]
[1760281497392,4.93884213,113000.0,112990.0,0.69183952]
[1760281497598,4.93884213,113000.0,112990.0,0.89899823]
[1760281499104,4.93884213,113000.0,112990.0,0.72199142]
[1760281499331,4.93884213,113000.0,112990.0,0.89899823]
[1760281500220,4.93884213,113000.0,112990.0,1.23899823]
[1760281500435,4.50160489,113000.0,112990.0,0.86399822]
[1760281500685,3.58306612,113000.0,112990.0,0.96399821]
[1760281500897,3.08502667,113000.0,112990.0,1.36399821]
[1760281501102,2.86169537,113000.0,112990.0,1.36399821]
[1760281501313,2.83511081,113000.0,112990.0,1.36399821]
[1760281501523,2.80852625,113000.0,112990.0,1.23699823]
[1760281501737,2.80852625,113000.0,112990.0,0.68983952]
[1760281501955,2.80852625,113000.0,112990.0,0.69183952]
[1760281502164,2.9855174,113000.0,112990.0,0.14092952]
[1760281502368,3.0331774,113000.0,112990.0,0.002]
[1760281502582,3.1308974,113000.0,112990.0,0.002]
[1760281503453,0.17701969,112990.0,112960.0,0.15986362]
[1760281503689,0.17702256,112980.0,112970.0,0.08952952]
[1760281503911,0.17702256,112980.0,112970.0,0.48952952]
[1760281504362,0.17988971,112980.0,112970.0,0.48952952]
[1760281504814,0.17988971,112980.0,112960.0,0.08824]
[1760281505041,0.17988971,112980.0,112960.0,0.04252]
[1760281505042,0.32344629,112970.0,112960.0,0.04252]
[1760281505266,0.32241815,112970.0,112960.0,0.04252]
[1760281505713,0.17703815,112970.0,112960.0,0.04252]
[1760281505984,2.80451294,113000.0,112960.0,0.30909793]
[1760281506229,2.80451294,113000.0,112990.0,0.0301519]
[1760281506469,2.80451294,113000.0,112990.0,0.51968142]
[1760281506704,2.80451294,113000.0,112990.0,0.4]
[1760281506925,2.80451294,113000.0,112990.0,0.48952952]
[1760281507371,2.98150409,113000.0,112990.0,0.4]
[1760281507592,2.80451294,113000.0,112980.0,0.17702191]
[1760281507813,2.9815046,113000.0,112980.0,0.08952952]
[1760281508040,0.17700681,112990.0,112980.0,0.48952952]
[1760281508301,2.9815046,113000.0,112990.0,0.001]
[1760281508745,2.9815046,113000.0,112980.0,0.66655153]
[1760281508971,2.9815046,113000.0,112980.0,0.48952952]
[1760281509197,2.80451294,113000.0,112990.0,0.26653633]
[1760281510114,2.80451294,113000.0,112990.0,0.08952952]
[1760281510596,0.17702317,112980.0,112960.0,0.11414362]
[1760281510819,0.17703815,112970.0,112960.0,0.20367314]
[1760281511043,0.17702281,112980.0,112960.0,0.60367314]
[1760281511285,0.17702327,112980.0,112960.0,0.53204952]
[1760281511494,2.98150512,113000.0,112970.0,0.08952952]
[1760281511700,2.99035467,113000.0,112970.0,0.08952952]
[1760281511908,0.00286715,112980.0,112970.0,0.26656767]
[1760281512163,0.00286715,112980.0,112970.0,0.08952952]
[1760281512369,0.00286715,112980.0,112970.0,0.26656767]
[1760281512791,0.00286715,112980.0,112970.0,0.73671956]
[1760281513213,0.00286715,112980.0,112970.0,0.63671957]
[1760281514438,0.00286715,112980.0,112970.0,0.63771957]
[1760281514669,0.00286715,112980.0,112970.0,0.52068142]
[1760281514875,0.00286715,112980.0,112970.0,0.69671957]
[1760281515105,0.00286715,112980.0,112970.0,1.03671957]
[1760281515319,0.00286715,112980.0,112970.0,1.03871957]
[1760281515756,2.54017857,113000.0,112990.0,0.17700681]
[1760281516019,2.54017857,113000.0,112990.0,0.26653633]
[1760281516399,2.54017857,113000.0,112990.0,0.29668823]
[1760281517159,2.54017857,113000.0,112990.0,0.29678823]
[1760281517567,2.54017857,113000.0,112990.0,0.29694823]
[1760281518139,2.54017857,113000.0,112990.0,0.26779633]
[1760281518534,2.71716972,113000.0,112990.0,0.001]
[1760281518939,2.54017857,113000.0,112990.0,0.00116]
[1760281519113,2.71716972,113000.0,112990.0,0.00116]
[1760281519318,2.71716972,113000.0,112990.0,0.001]
[1760281519596,2.82839972,113000.0,112990.0,0.001]
[1760281519752,2.54017857,113000.0,112990.0,0.00116]
[1760281519912,2.54017857,113000.0,112990.0,0.26779633]
[1760281520118,2.54017857,113000.0,112990.0,0.26663633]
[1760281520384,2.54017857,113000.0,112990.0,0.34030823]
[1760281520699,2.54017857,113000.0,112990.0,0.68030823]
[1760281520700,2.54007857,113000.0,112990.0,0.68030823]
[1760281520901,2.54007857,113000.0,112990.0,0.67930823]
[1760281521056,2.54007857,113000.0,112990.0,1.07930823]
[1760281521265,2.10676346,113000.0,112990.0,1.10530822]
[1760281521477,1.88511532,113000.0,112990.0,0.80530821]
[1760281521841,1.85852739,113000.0,112990.0,1.20430821]
[1760281522532,1.85852739,113000.0,112990.0,0.90230142]
[1760281522713,1.85852739,113000.0,112990.0,1.20430821]
[1760281523118,1.26352012,113000.0,112990.0,1.20430821]
[1760281523277,0.86030658,113000.0,112990.0,1.3043082]
[1760281523515,0.86030658,113000.0,112990.0,1.3063082]
[1760281523678,0.6742717,113000.0,112990.0,1.3063082]
[1760281523892,0.64768377,113000.0,112990.0,1.10630822]
[1760281524085,0.32448979,113000.0,112990.0,1.10430822]
[1760281524290,0.11599145,113000.0,112990.0,1.3043082]
[1760281524495,0.0002,113040.0,113030.0,0.51694417]
[1760281524693,0.00069884,113040.0,113030.0,0.60647369]
[1760281524906,0.00069884,113040.0,113030.0,0.42952952]
[1760281525110,0.00299065,113040.0,113030.0,0.63662559]
[1760281525314,0.17991917,113040.0,113030.0,0.42952952]
[1760281525494,0.17991917,113040.0,113030.0,0.08952952]
[1760281526201,0.00299065,113040.0,113030.0,0.26647369]
[1760281526599,0.32529917,113040.0,113030.0,0.08952952]
[1760281526799,0.32529917,113040.0,112990.0,0.0464656]
[1760281526800,0.00884799,113020.0,112990.0,0.4464656]
[1760281527002,0.17697405,113020.0,112990.0,0.62046692]
[1760281527270,0.00057311,113010.0,112990.0,0.4434656]
[1760281527832,0.00057311,113010.0,113000.0,0.17699115]
[1760281528148,0.185814,113030.0,113000.0,0.07149]
[1760281528149,0.18583042,113030.0,113000.0,0.07149]
[1760281528475,0.17695983,113020.0,113010.0,0.04766]
[1760281528799,0.17695983,113020.0,113000.0,0.07149]
[1760281529015,0.17697548,113010.0,113000.0,0.02383]
[1760281529221,0.17695983,113020.0,113000.0,0.07149]
[1760281529633,0.17697548,113010.0,113000.0,0.02383]
[1760281529855,0.17697548,113010.0,113000.0,0.07149]
[1760281530056,0.17697548,113010.0,113000.0,0.02483]
[1760281530273,0.17695983,113020.0,113000.0,0.24947895]
[1760281530478,0.1565422,113040.0,113010.0,0.04766]
[1760281530686,0.17797439,113030.0,113020.0,0.02383]
[1760281530891,0.17694625,113030.0,113020.0,0.02383]
[1760281531279,0.1565422,113040.0,113020.0,0.02383]
[1760281531482,0.17694417,113030.0,113020.0,0.02383]
[1760281531689,0.00014952,113030.0,113020.0,0.16101952]
[1760281532062,0.00014952,113030.0,113020.0,0.33797935]
[1760281532265,0.00014952,113030.0,113020.0,0.70813125]
[1760281532466,0.00014952,113030.0,113020.0,1.10813125]
[1760281533651,0.00014952,113030.0,113020.0,1.10913125]
[1760281534048,0.00014952,113030.0,113020.0,0.76913125]
[1760281534252,0.00014952,113030.0,113020.0,0.76813125]
[1760281534610,0.00129547,113030.0,113020.0,1.11013125]
[1760281535314,0.00129547,113030.0,113020.0,1.13513124]
[1760281535997,1e-08,113030.0,113020.0,0.73313124]
[1760281536232,1e-08,113030.0,113020.0,0.83313123]
[1760281536439,1e-08,113030.0,113020.0,0.83513123]
[1760281536701,1e-08,113030.0,113020.0,1.23513123]
[1760281536912,1e-08,113030.0,113020.0,1.23313123]
[1760281537170,1e-08,113030.0,113020.0,1.23513123]
[1760281537634,1e-08,113030.0,113020.0,1.29584123]
[1760281538111,1e-08,113030.0,113020.0,1.29884123]
[1760281538337,8e-05,113050.0,113040.0,0.61692851]
[1760281538569,8e-05,113050.0,113040.0,0.73028803]
[1760281538860,8e-05,113050.0,113040.0,0.74065804]
[1760281539087,8e-05,113050.0,113040.0,0.84065803]
[1760281539296,8e-05,113050.0,113040.0,1.27080993]
[1760281539502,8e-05,113050.0,113040.0,1.29580992]
[1760281539726,8e-05,113050.0,113040.0,1.29780992]
[1760281540197,0.0002,113070.0,113060.0,0.64704911]
[1760281540402,0.00034944,113070.0,113060.0,0.78540862]
[1760281540621,0.00034944,113070.0,113060.0,0.73306863]
[1760281540820,0.00034944,113070.0,113060.0,0.83306862]
[1760281540959,0.00034944,113070.0,113060.0,1.23306862]
[1760281542098,0.07162362,113140.0,113120.0,0.17680339]
[1760281542263,0.07177309,113140.0,113130.0,0.09014]
[1760281542468,0.00014947,113140.0,113130.0,0.09014]
[1760281542675,0.17692161,113140.0,113130.0,0.15285]
[1760281542866,0.00014947,113140.0,113130.0,0.60051]
[1760281543063,0.00014947,113140.0,113130.0,0.77729776]
[1760281543538,0.00014947,113140.0,113130.0,0.60051]
[1760281544042,0.17692161,113140.0,113130.0,0.60051]
[1760281544269,0.17692161,113140.0,113130.0,0.60151]
[1760281544495,0.00629605,113140.0,113130.0,0.73063776]
[1760281544674,0.00629605,113140.0,113130.0,0.86782728]
[1760281545512,0.00629605,113140.0,113130.0,0.86682728]
[1760281545907,0.00629605,113140.0,113130.0,1.23697918]
[1760281546664,0.0002,113170.0,113160.0,0.17674089]
[1760281546881,0.00069794,113170.0,113160.0,0.26627041]
[1760281547077,0.00069794,113170.0,113160.0,1.11767041]
[1760281547281,0.00069794,113170.0,113160.0,1.14782231]
[1760281547984,0.00069794,113170.0,113160.0,0.77767041]
[1760281548321,0.00069794,113170.0,113160.0,0.80782231]
[1760281548522,0.00069794,113170.0,113160.0,1.14782231]
[1760281549359,0.00069794,113170.0,113160.0,1.14882231]
[1760281549736,8e-05,113200.0,113180.0,0.20685738]
[1760281549942,8e-05,113200.0,113190.0,0.29005357]
[1760281549943,0.00022935,113200.0,113190.0,0.29005357]
[1760281550139,0.00022935,113200.0,113190.0,0.40145357]
[1760281550384,0.082,113230.0,113220.0,0.64679912]
[1760281550585,0.082,113230.0,113220.0,0.84473865]
[1760281550783,0.082,113230.0,113220.0,1.24473865]
[1760281551354,0.00602814,113280.0,113240.0,0.55559873]
[1760281551551,0.05583741,113300.0,113270.0,0.66878913]
[1760281551552,0.01033921,113300.0,113270.0,0.66878913]
[1760281551748,0.01033921,113300.0,113290.0,0.6362195]
[1760281552103,0.01033921,113300.0,113290.0,1.0362195]
[1760281552300,0.01033921,113300.0,113290.0,0.6660676]
[1760281552601,0.01947973,113300.0,113290.0,0.6660676]
[1760281552839,0.01947973,113300.0,113290.0,0.66656554]
[1760281553050,0.01947973,113300.0,113290.0,0.00249794]
[1760281553242,0.01947973,113300.0,113290.0,0.09202746]
[1760281553402,0.01947973,113300.0,113290.0,0.29671744]
[1760281553757,0.18526802,113350.0,113320.0,0.17648707]
[1760281553921,0.17646092,113340.0,113320.0,0.61036964]
[1760281554132,0.18526802,113350.0,113320.0,0.61036964]
[1760281554335,0.18526802,113350.0,113320.0,0.4]
[1760281554336,0.04574,113330.0,113320.0,0.4]
[1760281554739,0.22220869,113340.0,113320.0,0.4]
[1760281554939,0.18526818,113350.0,113320.0,0.66797099]
[1760281555224,0.1085,113380.0,113350.0,0.17642959]
[1760281555397,0.015,113430.0,113420.0,0.20133573]
[1760281555670,0.015,113430.0,113420.0,0.63281573]
[1760281555895,0.015,113430.0,113420.0,1.06296763]